bitfinex/quotes_SOLUSD_20240718
["timestamp","ask_amount","ask_price","bid_price","bid_amount"]
[1721341507476,6.2596,159.76,159.68,15.1]
[1721341507800,15.1,159.74,159.68,15.1]
[1721341508779,28.174,159.77,159.68,15.1]
[1721341508979,28.174,159.77,159.7,15.1]
[1721341508980,15.1,159.75,159.7,15.1]
[1721341509292,21.915,159.77,159.66,15.34813179]
[1721341509293,15.1,159.76,159.71,16.35213521]
[1721341509499,15.1,159.76,159.71,15.1]
[1721341509901,15.1,159.76,159.66,15.34813179]
[1721341509902,15.1,159.75,159.7,15.1]
[1721341510397,15.1,159.75,159.66,15.34813179]
[1721341510398,15.1,159.73,159.67,1.25222591]
[1721341510699,15.1,159.72,159.68,1.25235059]
[1721341511078,15.1,159.72,159.67,16.35236973]
[1721341511796,15.1,159.72,159.67,15.1]
[1721341512387,18.83,159.76,159.67,15.1]
[1721341512592,15.1,159.72,159.67,15.1]
[1721341513691,15.1,159.73,159.68,15.1]
[1721341514208,15.1,159.72,159.67,15.1]
[1721341515202,15.1,159.71,159.66,15.1]
[1721341515584,15.1,159.71,159.65,15.1]
[1721341515888,15.1,159.68,159.63,15.1]
[1721341516281,15.1,159.69,159.64,15.1]
[1721341516491,15.1,159.68,159.63,15.1]
[1721341516998,21.2242,159.81,159.67,15.1]
[1721341517202,15.1,159.76,159.71,15.1]
[1721341517702,0.8142836,159.78,159.72,15.1]
[1721341517889,15.1,159.77,159.71,15.1]
[1721341518091,15.1,159.76,159.66,16.07]
[1721341518297,6.259,159.77,159.7,15.1]
[1721341518598,15.1,159.75,159.7,15.1]
[1721341521007,15.1,159.76,159.7,15.1]
[1721341523323,15.1,159.77,159.71,15.1]
[1721341523612,15.9142836,159.78,159.72,15.1]
[1721341523820,15.1,159.77,159.72,15.1]
[1721341524306,15.1,159.77,159.67,26.68093179]
[1721341524499,15.1,159.77,159.72,15.1]
[1721341524708,15.1,159.77,159.67,26.3754]
[1721341524709,15.1,159.77,159.71,15.1]
[1721341524894,15.1,159.77,159.72,15.1]
[1721341525611,0.8142836,159.78,159.76,15.1]
[1721341525914,0.8142836,159.78,159.77,15.1]
[1721341526298,0.8142836,159.78,159.76,15.1]
[1721341526505,0.8142836,159.78,159.76,15.40553179]
[1721341526703,0.8142836,159.78,159.77,16.35140962]
[1721341526900,0.8142836,159.78,159.77,15.1]
[1721341527322,0.8142836,159.78,159.77,16.35145736]
[1721341527620,15.4629,159.86,159.76,0.30553179]
[1721341527800,30.5629,159.86,159.81,15.1]
[1721341528192,15.4629,159.86,159.76,30.40553179]
[1721341528414,15.4629,159.86,159.76,30.1]
[1721341528713,6.2547,159.88,159.76,30.40553179]
[1721341528909,6.2552,159.87,159.76,30.1]
[1721341530103,32.251543,159.89,159.77,17.09380106]
[1721341530312,6.2547,159.88,159.77,17.09380106]
[1721341530506,6.2547,159.88,159.77,15.8424]
[1721341531416,1.066843,159.89,159.79,6.2972]
[1721341531715,1.066843,159.89,159.8,1.25114587]
[1721341531925,1.066843,159.89,159.8,66.55667766]
[1721341532133,1.066843,159.89,159.82,30.1]
[1721341532503,1.066843,159.89,159.83,1.2510694]
[1721341532940,1.066843,159.89,159.82,30.1]
[1721341533147,1.066843,159.89,159.83,17.61754768]
[1721341533338,1.066843,159.89,159.8,20.0]
[1721341533634,6.2549,159.88,159.8,20.0]
[1721341533822,6.2551,159.87,159.79,22.6637]
[1721341534220,6.2547,159.88,159.79,22.6637]
[1721341534733,18.83,159.88,159.75,22.5493]
[1721341534934,6.2555,159.86,159.75,22.5493]
[1721341535928,18.83,159.88,159.75,22.5493]
[1721341536137,6.2564,159.84,159.75,22.5493]
[1721341536336,6.2564,159.84,159.75,16.0703]
[1721341536836,12.5899,159.84,159.74,30.1]
[1721341537450,6.3335,159.84,159.74,30.1]
[1721341537942,6.3335,159.84,159.75,20.0]
[1721341539129,12.5898,159.84,159.75,20.0]
[1721341539473,25.1635,159.84,159.71,66.83672312]
[1721341539634,18.83,159.83,159.71,52.6493]
[1721341540055,6.2574,159.82,159.71,52.6493]
[1721341540262,6.2575,159.81,159.71,52.6493]
[1721341540856,18.83,159.83,159.72,21.25186927]
[1721341541163,18.83,159.83,159.72,20.0]
[1721341542066,31.4198,159.84,159.73,1.25186139]
[1721341542366,25.1635,159.84,159.72,20.0]
[1721341542878,31.4198,159.84,159.72,20.0]
[1721341546651,31.4198,159.84,159.73,1.25179738]
[1721341546877,31.4198,159.84,159.74,1.25179421]
[1721341547082,18.83,159.82,159.73,1.25179407]
[1721341547286,25.087,159.82,159.72,20.0]
[1721341547663,6.2574,159.81,159.72,20.0]
[1721341547970,25.0874,159.81,159.72,20.0]
[1721341548173,25.0874,159.81,159.72,21.2519939]
[1721341548375,15.06,159.78,159.71,22.5493]
[1721341548555,15.06,159.77,159.71,31.1303]
[1721341549582,15.06,159.75,159.67,22.5921]
[1721341549762,15.06,159.75,159.7,15.06]
[1721341550483,18.83,159.77,159.67,22.5921]
[1721341550484,25.089,159.77,159.67,22.5921]
[1721341550701,18.83,159.77,159.68,1.25230792]
[1721341551483,18.83,159.77,159.68,21.25230792]
[1721341551786,6.2598,159.75,159.67,16.4669]
[1721341552002,18.83,159.74,159.65,6.52456122]
[1721341552203,25.0898,159.75,159.65,1.25252304]
[1721341552379,22.7721,159.77,159.65,1.25252304]
[1721341552569,6.2596,159.76,159.65,1.25252304]
[1721341553210,6.2598,159.75,159.65,1.25252304]
[1721341553411,25.0898,159.75,159.64,8.25202866]
[1721341553704,25.0898,159.75,159.65,20.0]
[1721341554380,25.0898,159.75,159.66,1.25248986]
[1721341555515,70.0903,159.74,159.63,52.7321]
[1721341555680,18.83,159.75,159.64,1.25245144]
[1721341556007,25.0898,159.75,159.65,1.25245095]
[1721341556803,25.0898,159.75,159.64,21.25248301]
[1721341556984,25.0898,159.75,159.64,20.0]
[1721341557186,25.0898,159.75,159.65,1.25249571]
[1721341557400,6.2601,159.74,159.64,20.0]
[1721341557586,25.0901,159.74,159.65,1.25250792]
[1721341557790,6.2606,159.73,159.64,20.0]
[1721341558981,6.2606,159.73,159.64,21.25259558]
[1721341559691,6.2606,159.73,159.64,20.0]
[1721341560701,25.0906,159.73,159.64,20.0]
[1721341560906,25.091,159.72,159.63,22.5921]
[1721341562715,6.2617,159.7,159.6,46.26659594]
[1721341563015,6.2617,159.7,159.61,20.0]
[1721341563614,6.2617,159.7,159.6,20.0]
[1721341565305,27.7364,159.7,159.6,20.0]
[1721341565617,18.83,159.69,159.59,16.2182]
[1721341565801,25.0933,159.66,159.55,15.94396941]
[1721341566001,25.0933,159.66,159.56,1.25321533]
[1721341566220,6.2637,159.65,159.55,14.85652866]
[1721341566517,6.2637,159.65,159.56,1.2532172]
[1721341567220,6.2633,159.66,159.56,1.2532172]
[1721341567405,25.0933,159.66,159.56,1.2532172]
[1721341568211,21.4747,159.7,159.56,1.55874899]
[1721341568796,21.4747,159.7,159.56,21.55874899]
[1721341569027,6.2627,159.68,159.56,21.55874899]
[1721341569211,6.2622,159.69,159.56,21.55874899]
[1721341569401,27.7365,159.7,159.57,45.30553179]
[1721341569605,6.2624,159.69,159.58,20.0]
[1721341569808,21.4747,159.7,159.58,20.0]
[1721341570322,40.3047,159.7,159.58,20.0]
[1721341570918,6.2626,159.68,159.59,1.25284892]
[1721341571225,6.2629,159.67,159.59,1.25284892]
[1721341571428,18.83,159.69,159.59,1.25284892]
[1721341571610,6.2624,159.69,159.59,1.25284892]
[1721341572016,6.2626,159.68,159.6,1.25284454]
[1721341572204,6.2626,159.68,159.56,20.0]
[1721341572205,6.2626,159.68,159.57,1.2529096]
[1721341572406,6.2629,159.67,159.58,1.25292311]
[1721341572930,6.2625,159.68,159.58,1.25292311]
[1721341573330,6.263,159.67,159.58,1.25292311]
[1721341573524,6.2625,159.68,159.58,1.25292311]
[1721341573823,6.2633,159.66,159.57,1.25293877]
[1721341574024,18.83,159.68,159.58,1.25297276]
[1721341574523,6.2632,159.67,159.58,1.25297276]
[1721341575216,6.2632,159.67,159.59,1.25302652]
[1721341575416,6.2632,159.67,159.57,1.25301742]
[1721341575727,6.2632,159.67,159.58,1.25302968]
[1721341576029,18.83,159.69,159.58,1.25302968]
[1721341576211,18.83,159.69,159.6,15.09]
[1721341576212,21.3538,159.65,159.6,15.09]
[1721341576530,21.3537,159.65,159.6,15.09]
[1721341576707,15.09,159.64,159.59,15.09]
[1721341578138,6.2637,159.65,159.59,15.09]
[1721341578139,21.3537,159.65,159.59,15.09]
[1721341578647,15.09,159.64,159.59,15.09]
[1721341579440,15.09,159.64,159.58,15.09]
[1721341579735,6.2637,159.65,159.58,15.09]
[1721341579736,15.09,159.63,159.58,15.09]
[1721341581754,15.09,159.63,159.53,16.2182]
[1721341582034,15.09,159.62,159.53,16.2182]
[1721341582241,15.09,159.62,159.56,15.09]
[1721341582626,15.09,159.62,159.57,15.09]
[1721341582823,15.09,159.63,159.57,15.09]
[1721341583043,15.09,159.63,159.54,1.25330406]
[1721341583044,15.09,159.63,159.58,15.09]
[1721341584623,15.09,159.61,159.56,15.09]
[1721341585723,15.09,159.61,159.54,1.25329227]
[1721341585925,6.2646,159.63,159.54,1.25329227]
[1721341585926,15.09,159.62,159.57,15.09]
[1721341587445,15.09,159.64,159.59,15.09]
[1721341587836,15.09,159.64,159.54,1.25310609]
[1721341588044,15.09,159.64,159.58,15.09]
[1721341588423,15.09,159.62,159.57,15.09]
[1721341589433,15.09,159.63,159.58,15.09]
[1721341589742,15.09,159.63,159.54,1.25321751]
[1721341589743,15.09,159.62,159.57,15.09]
[1721341589947,15.09,159.63,159.58,15.09]
[1721341591225,15.09,159.62,159.57,15.09]
[1721341591538,15.09,159.63,159.58,15.09]
[1721341592035,76.0165,159.68,159.53,16.52373179]
[1721341592036,15.09,159.64,159.59,15.09]
[1721341592519,6.2637,159.65,159.58,20.09]
[1721341592718,15.09,159.63,159.58,20.09]
[1721341592945,15.09,159.64,159.59,16.34308024]
[1721341593151,6.2633,159.66,159.59,15.09]
[1721341593339,15.09,159.64,159.59,15.09]
[1721341593845,15.09,159.63,159.58,20.09]
[1721341597052,15.09,159.64,159.59,15.09]
[1721341597754,79.19,159.68,159.58,5.0]
[1721341597755,15.09,159.65,159.6,15.09]
[1721341597942,18.83,159.68,159.6,15.09]
[1721341598147,22.0705,159.69,159.63,15.09]
[1721341598345,15.09,159.68,159.63,15.09]
[1721341599942,28.3327,159.69,159.63,15.09]
[1721341600148,15.09,159.68,159.63,15.09]
[1721341601742,15.09,159.67,159.62,15.09]
[1721341602437,15.09,159.67,159.6,1.25283572]
[1721341602642,15.09,159.67,159.62,15.09]
[1721341603650,15.09,159.66,159.61,15.09]
[1721341604644,15.09,159.67,159.62,15.09]
[1721341605659,15.09,159.66,159.61,15.09]
[1721341606337,15.09,159.64,159.58,20.09]
[1721341606544,15.09,159.63,159.58,20.09]
[1721341610061,15.09,159.63,159.58,5.0]
[1721341610355,15.09,159.63,159.58,20.09]
[1721341610566,15.09,159.63,159.58,5.0]
[1721341611053,25.0937,159.65,159.58,5.0]
[1721341611054,15.09,159.61,159.58,5.0]
[1721341611951,15.09,159.62,159.58,5.0]
[1721341614453,15.09,159.61,159.58,5.0]
[1721341615255,18.83,159.64,159.58,5.0]
[1721341615447,15.09,159.61,159.58,5.0]
[1721341617260,60.36,159.68,159.58,5.0]
[1721341617261,15.09,159.6,159.58,5.0]
[1721341618064,15.09,159.59,159.58,5.0]
[1721341619349,18.83,159.66,159.58,5.0]
[1721341619547,15.09,159.63,159.58,20.09]
[1721341621579,15.09,159.62,159.58,5.0]
[1721341622049,15.09,159.61,159.58,5.0]
[1721341625785,15.09,159.6,159.58,5.0]
[1721341627585,15.09,159.59,159.58,5.0]
[1721341630784,40.186,159.59,159.58,5.0]
[1721341634259,85.186,159.59,159.58,5.0]
[1721341635168,6.2674,159.56,159.47,16.041]
[1721341635388,15.09,159.51,159.47,16.041]
[1721341635963,25.0969,159.57,159.48,16.34391494]
[1721341636193,15.09,159.53,159.48,16.34391494]
[1721341636789,25.0965,159.58,159.49,16.34391144]
[1721341637110,25.0965,159.58,159.49,15.09]
[1721341637111,15.09,159.55,159.49,15.09]
[1721341637696,15.09,159.54,159.49,15.09]
[1721341637907,15.09,159.53,159.47,16.041]
[1721341638078,18.83,159.57,159.47,31.131]
[1721341638079,15.09,159.52,159.47,31.131]
[1721341638577,15.09,159.51,159.47,16.041]
[1721341638781,15.09,159.52,159.47,16.041]
[1721341638982,15.09,159.51,159.47,16.041]
[1721341639492,6.2684,159.53,159.47,16.041]
[1721341639493,15.09,159.5,159.47,16.041]
[1721341639694,15.09,159.5,159.45,21.2447]
[1721341640405,15.09,159.49,159.44,15.09]
[1721341643783,18.83,159.62,159.48,15.09]
[1721341644105,15.6519,159.63,159.47,1.25358708]
[1721341644106,15.09,159.54,159.47,1.25358708]
[1721341644290,15.09,159.53,159.45,42.5711]
[1721341644491,15.09,159.53,159.48,15.09]
[1721341644679,15.09,159.52,159.47,15.09]
[1721341644882,6.2722,159.44,159.39,0.8142836]
[1721341645087,60.36,159.44,159.39,0.8142836]
[1721341645279,18.83,159.48,159.39,0.8142836]
[1721341645280,15.09,159.42,159.39,0.8142836]
[1721341645498,6.2712,159.46,159.39,0.8142836]
[1721341645912,25.0007,159.51,159.41,15.09]
[1721341646092,15.09,159.47,159.42,1.25440294]
[1721341646290,6.2698,159.5,159.42,15.09]
[1721341646610,6.27,159.49,159.39,0.8142836]
[1721341646993,25.0007,159.51,159.39,0.8142836]
[1721341646994,6.2704,159.48,159.39,0.8142836]
[1721341648080,6.2704,159.48,159.39,20.8142836]
[1721341648412,6.2699,159.5,159.39,20.8142836]
[1721341648704,6.2699,159.5,159.4,15.8892]
[1721341649284,6.2699,159.5,159.41,1.25435562]
[1721341649995,40.7509,159.52,159.41,21.25435562]
[1721341650200,15.6519,159.52,159.41,21.55988741]
[1721341650400,36.6639,159.55,159.41,21.55988741]
[1721341650589,6.2685,159.53,159.41,21.55988741]
[1721341650991,6.2685,159.53,159.42,6.5025]
[1721341651192,6.2685,159.53,159.43,21.25399674]
[1721341652213,6.2685,159.53,159.43,20.0]
[1721341652514,6.2688,159.52,159.43,20.0]
[1721341655689,18.83,159.53,159.43,1.25401673]
[1721341655889,6.2692,159.51,159.43,1.25401673]
[1721341656092,6.2696,159.5,159.43,1.25401673]
[1721341656303,6.2692,159.51,159.43,1.25401673]
[1721341656499,51.2689,159.52,159.43,1.25401673]
[1721341657103,51.2689,159.52,159.43,21.25401673]
[1721341657604,6.2689,159.52,159.43,21.25401673]
[1721341657907,6.2692,159.51,159.43,21.25401673]
[1721341658307,6.2687,159.53,159.43,21.25401673]
[1721341658510,55.4939,159.55,159.43,21.25401673]
[1721341658708,45.0,159.54,159.43,21.25401673]
[1721341658910,45.0,159.54,159.43,20.0]
[1721341659210,6.2686,159.53,159.44,1.25401775]
[1721341659409,6.2688,159.52,159.43,20.0]
[1721341661808,6.2685,159.53,159.44,1.25402053]
[1721341662006,6.2685,159.53,159.43,20.0]
[1721341662725,6.2688,159.52,159.43,20.0]
[1721341663821,21.38013638,159.59,159.44,61.85151895]
[1721341664039,6.2669,159.57,159.45,52.29513179]
[1721341664201,6.2665,159.58,159.46,66.25372642]
[1721341664803,6.2669,159.57,159.46,66.25372642]
[1721341665497,6.2661,159.59,159.47,0.30553179]
[1721341665713,6.2661,159.59,159.48,1.25355296]
[1721341665916,6.2661,159.59,159.49,1.25347225]
[1721341666203,6.2661,159.59,159.49,21.25347225]
[1721341666700,6.2665,159.58,159.49,21.25347225]
[1721341667013,15.3501,159.61,159.49,21.25347225]
[1721341667014,6.2675,159.56,159.49,21.25347225]
[1721341667401,6.2675,159.56,159.49,1.25347225]
[1721341667728,6.2669,159.57,159.49,1.25347225]
[1721341668135,6.2672,159.56,159.49,1.25347225]
[1721341668304,18.83,159.58,159.48,20.0]
[1721341668508,6.2677,159.55,159.48,20.0]
[1721341669408,6.2681,159.54,159.47,15.8839]
[1721341670521,6.2685,159.53,159.47,15.8839]
[1721341671225,6.2689,159.52,159.47,15.8839]
[1721341671724,6.2689,159.52,159.45,6.1421]
[1721341672712,6.2684,159.53,159.45,6.1421]
[1721341674622,18.83,159.53,159.45,6.1421]
[1721341674932,18.83,159.53,159.45,7.39631297]
[1721341674933,6.2688,159.52,159.45,7.39631297]
[1721341675126,6.2688,159.52,159.45,6.1421]
[1721341675931,6.2685,159.53,159.45,6.1421]
[1721341676813,6.2688,159.52,159.45,6.1421]
[1721341679315,18.83,159.54,159.45,6.1421]
[1721341679629,45.0,159.53,159.45,6.1421]
[1721341679934,70.0985,159.53,159.45,6.1421]
[1721341680633,25.0988,159.52,159.45,6.1421]
[1721341682247,15.12,159.49,159.45,6.1421]
[1721341683421,15.12,159.49,159.44,15.12]
[1721341684714,15.12,159.48,159.43,31.3507]
[1721341685040,15.12,159.48,159.44,20.0]
[1721341687724,15.12,159.48,159.43,16.2307]
[1721341687937,15.12,159.48,159.43,31.3507]
[1721341688239,15.12,159.48,159.43,16.2307]
[1721341688622,15.12,159.47,159.43,16.2307]
[1721341688819,15.12,159.45,159.41,6.3423]
[1721341689032,15.12,159.45,159.4,15.12]
[1721341689526,15.12,159.44,159.39,41.40973685]
[1721341689838,15.12,159.45,159.39,32.1493836]
[1721341690719,18.83,159.51,159.4,16.37459018]
[1721341690925,15.12,159.45,159.4,16.37459018]
[1721341691644,15.12,159.45,159.4,1.25459018]
[1721341691829,15.12,159.45,159.39,32.1493836]
[1721341692715,15.12,159.45,159.4,1.25455856]
[1721341692916,15.12,159.45,159.39,32.1493836]
[1721341693538,15.12,159.44,159.39,32.1493836]
[1721341693930,15.12,159.43,159.39,17.0293836]
[1721341694444,6.2711,159.46,159.39,17.0293836]
[1721341694445,15.12,159.44,159.39,17.0293836]
[1721341694657,6.2711,159.46,159.39,17.0293836]
[1721341694832,15.12,159.44,159.39,17.0293836]
[1721341696127,15.12,159.44,159.39,33.40401305]
[1721341696637,6.2711,159.46,159.39,32.1493836]
[1721341696831,6.2707,159.48,159.39,17.0293836]
[1721341697048,15.12,159.45,159.4,16.37463084]
[1721341697557,15.12,159.44,159.4,1.25463084]
[1721341698261,6.2707,159.47,159.4,1.25463084]
[1721341698262,15.12,159.45,159.4,16.37463084]
[1721341698933,15.12,159.45,159.4,1.25463084]
[1721341699855,15.12,159.46,159.4,1.25463084]
[1721341704246,15.12,159.45,159.4,1.25463084]
[1721341704456,15.12,159.45,159.39,17.0293836]
[1721341706633,15.12,159.45,159.39,32.1493836]
[1721341707742,15.12,159.45,159.4,1.25459144]
[1721341708058,15.12,159.45,159.4,16.37459144]
[1721341710537,15.12,159.45,159.4,1.25459144]
[1721341710739,15.12,159.45,159.39,17.0293836]
[1721341711039,6.2708,159.47,159.4,16.37455956]
[1721341711235,15.12,159.46,159.4,16.37455956]
[1721341715046,15.12,159.45,159.4,15.12]
[1721341715646,15.12,159.45,159.4,16.37451244]
[1721341717341,15.12,159.45,159.4,15.12]
[1721341718561,15.12,159.45,159.4,16.37451287]
[1721341719256,15.12,159.45,159.39,17.0293836]
[1721341719642,15.12,159.44,159.39,32.1493836]
[1721341720674,15.12,159.45,159.4,15.12]
[1721341727263,18.83,159.49,159.4,15.12]
[1721341727467,15.12,159.46,159.41,15.12]
[1721341727779,15.12,159.46,159.4,15.12]
[1721341728157,15.12,159.45,159.4,15.12]
[1721341728681,15.12,159.45,159.39,17.0293836]
[1721341728852,15.12,159.45,159.39,32.1493836]
[1721341730756,15.12,159.42,159.39,17.0293836]
[1721341730976,15.12,159.4,159.39,0.8142836]
[1721341735571,66.3935,159.4,159.39,0.8142836]
[1721341736382,85.2235,159.4,159.39,0.8142836]
[1721341738475,63.83,159.4,159.39,0.8142836]
[1721341738684,85.2235,159.4,159.39,0.8142836]
[1721341747587,91.6374,159.4,159.39,0.8142836]
[1721341748265,76.5174,159.4,159.39,0.8142836]
[1721341748473,91.6374,159.4,159.39,0.8142836]
[1721341749290,6.2731,159.41,159.39,0.8142836]
[1721341749486,15.12,159.4,159.39,0.8142836]
[1721341749894,21.5161,159.43,159.39,0.8142836]
[1721341750198,15.12,159.41,159.39,0.8142836]
[1721341754210,18.83,159.46,159.39,0.8142836]
[1721341754378,15.12,159.44,159.39,15.9342836]
[1721341754573,6.2711,159.46,159.4,15.12]
[1721341754777,15.12,159.46,159.4,30.8363]
[1721341755074,6.2704,159.48,159.41,15.12]
[1721341755278,15.12,159.46,159.41,15.12]
[1721341755680,21.3912,159.46,159.41,15.12]
[1721341756679,15.12,159.45,159.4,30.8363]
[1721341757498,6.272,159.44,159.4,15.7163]
[1721341757697,15.12,159.43,159.4,15.7163]
[1721341758104,45.0,159.49,159.4,15.7163]
[1721341758105,15.35182105,159.52,159.42,15.12]
[1721341758291,15.12,159.5,159.45,15.12]
[1721341758486,15.12,159.51,159.46,15.12]
[1721341759702,15.12,159.49,159.44,15.12]
[1721341760289,15.12,159.49,159.41,6.3501]
[1721341760596,15.12,159.49,159.44,15.12]
[1721341761580,15.12,159.48,159.41,6.3501]
[1721341761786,15.12,159.46,159.41,6.3501]
[1721341762987,15.12,159.45,159.41,6.3501]
[1721341763194,15.12,159.45,159.4,30.8363]
[1721341763392,15.12,159.44,159.4,15.7163]
[1721341763703,15.12,159.43,159.39,0.8142836]
[1721341764000,15.12,159.42,159.39,0.8142836]
[1721341766393,15.12,159.43,159.39,0.8142836]
[1721341766781,15.12,159.45,159.4,15.12]
[1721341767485,15.12,159.45,159.39,15.9342836]
[1721341768091,15.12,159.45,159.39,0.8142836]
[1721341768386,15.12,159.45,159.39,15.9342836]
[1721341768992,15.12,159.44,159.39,15.9342836]
[1721341769192,22.3547,159.49,159.4,1.25464743]
[1721341769404,22.3547,159.49,159.42,15.12]
[1721341769405,15.12,159.47,159.42,15.12]
[1721341769707,15.12,159.46,159.41,15.12]
[1721341769919,6.2699,159.49,159.42,16.37452871]
[1721341770212,15.12,159.47,159.42,15.12]
[1721341770590,15.12,159.48,159.42,15.12]
[1721341770795,21.3909,159.47,159.39,2.06868523]
[1721341771000,21.3909,159.47,159.41,15.12]
[1721341771001,15.12,159.46,159.41,15.12]
[1721341771308,21.3912,159.46,159.4,15.12]
[1721341771895,21.3912,159.46,159.41,15.12]
[1721341772096,15.12,159.47,159.42,15.12]
[1721341773212,21.3908,159.47,159.42,15.12]
[1721341773595,21.3908,159.47,159.41,15.12]
[1721341775925,6.2711,159.46,159.41,15.12]
[1721341776712,21.3911,159.46,159.41,15.12]
[1721341778712,21.3908,159.47,159.41,15.12]
[1721341779110,6.2703,159.48,159.42,15.12]
[1721341779304,6.2696,159.5,159.44,15.12]
[1721341779618,15.12,159.49,159.44,15.12]
[1721341780398,21.3899,159.49,159.44,15.12]
[1721341781108,15.12,159.49,159.44,15.12]
[1721341782023,21.39,159.49,159.44,15.12]
[1721341782716,21.3909,159.47,159.39,0.8142836]
[1721341782920,6.2708,159.47,159.41,15.12]
[1721341783105,21.3908,159.47,159.41,15.12]
[1721341783725,21.3908,159.47,159.42,15.12]
[1721341783914,6.2708,159.47,159.42,15.12]
[1721341784221,15.12,159.48,159.43,15.12]
[1721341784613,21.3901,159.49,159.44,15.12]
[1721341784813,6.2701,159.49,159.44,15.12]
[1721341785016,6.2696,159.5,159.44,15.12]
[1721341785224,15.12,159.49,159.44,15.12]
[1721341785413,21.3896,159.5,159.45,15.12]
[1721341785613,21.3896,159.5,159.44,15.12]
[1721341785808,15.12,159.49,159.44,15.12]
[1721341786003,21.3899,159.49,159.44,15.12]
[1721341786203,15.12,159.49,159.44,15.12]
[1721341790724,15.12,159.48,159.42,16.0501]
[1721341791029,15.12,159.48,159.42,31.1701]
[1721341791408,15.12,159.47,159.42,15.12]
[1721341792709,15.12,159.48,159.42,15.12]
[1721341793525,15.12,159.47,159.39,0.8142836]
[1721341793728,15.12,159.47,159.42,15.12]
[1721341793935,25.1201,159.49,159.42,15.12]
[1721341794116,15.12,159.47,159.42,15.12]
[1721341794714,60.12,159.48,159.42,15.12]
[1721341794909,6.2695,159.51,159.44,15.12]
[1721341795113,6.317,159.52,159.45,15.12]
[1721341795315,12.5859,159.52,159.46,15.12]
[1721341795515,15.12,159.51,159.46,15.12]
[1721341795731,15.12,159.5,159.45,15.12]
[1721341796853,15.12,159.5,159.4,1.25423377]
[1721341797144,15.12,159.5,159.45,15.12]
[1721341798155,12.5859,159.52,159.45,15.12]
[1721341798332,45.0,159.51,159.45,15.12]
[1721341798529,15.12,159.5,159.45,15.12]
[1721341800217,60.12,159.51,159.45,15.12]
[1721341800425,66.3892,159.51,159.45,15.12]
[1721341800757,66.3892,159.51,159.46,15.12]
[1721341800924,66.3892,159.51,159.45,15.12]
[1721341801124,66.3892,159.51,159.46,15.12]
[1721341801325,66.3892,159.51,159.45,15.12]
[1721341801530,60.12,159.51,159.46,15.12]
[1721341802732,15.12,159.49,159.4,9.25808954]
[1721341802931,15.12,159.48,159.43,15.12]
[1721341803144,63.85,159.51,159.39,10.07479146]
[1721341803345,21.3912,159.46,159.4,15.12]
[1721341803638,15.12,159.46,159.41,15.12]
[1721341803844,21.3908,159.47,159.41,15.12]
[1721341804149,15.12,159.46,159.41,15.12]
[1721341805831,63.85,159.51,159.42,15.12]